bitfinex/quotes_ETHUSD_20240714
["timestamp","ask_amount","ask_price","bid_price","bid_amount"]
[1720948248204,6.06335501,3218.8,3218.3,0.07751562]
[1720948248418,6.06335501,3218.8,3218.2,9.7994]
[1720948248715,3.78,3218.8,3218.3,0.07751562]
[1720948248924,3.78,3218.8,3218.2,2.4882]
[1720948249085,3.78,3218.8,3218.4,0.07746578]
[1720948249285,3.78,3218.8,3218.2,2.4882]
[1720948249618,3.78,3218.8,3218.3,0.07751562]
[1720948249981,3.78,3218.8,3218.2,2.4882]
[1720948250314,3.78,3218.8,3218.3,0.07751562]
[1720948250502,6.06287503,3218.8,3218.2,2.4882]
[1720948250708,6.06287503,3218.8,3218.4,0.07746578]
[1720948250895,3.78,3218.8,3218.2,2.4882]
[1720948251095,3.78,3218.8,3218.5,0.07743832]
[1720948251294,3.78,3218.8,3218.2,2.4882]
[1720948251295,5.88916253,3218.8,3218.2,2.4882]
[1720948251499,3.0,3218.8,3218.6,0.07738849]
[1720948251817,5.28287503,3218.9,3218.2,2.4882]
[1720948252115,5.28287503,3218.9,3218.3,0.07753798]
[1720948252318,5.28287503,3218.9,3218.2,2.4882]
[1720948252627,3.0,3218.9,3218.4,0.07748815]
[1720948252783,2.28346363,3218.9,3218.3,0.07753798]
[1720948252997,2.28346363,3218.9,3218.2,2.4882]
[1720948252998,3.0,3218.9,3218.2,2.4882]
[1720948253337,2.28348071,3218.9,3218.3,0.07753798]
[1720948253629,5.28348071,3218.9,3218.3,0.07753798]
[1720948254131,5.28348071,3218.9,3218.4,2.3842]
[1720948254331,2.28348071,3219.0,3218.4,3.24168408]
[1720948254541,2.28348071,3219.1,3218.5,2.3842]
[1720948254703,2.28348071,3219.1,3218.6,2.70836841]
[1720948254899,3.0,3219.2,3218.6,2.78575283]
[1720948254900,2.28348071,3219.2,3218.6,2.78575283]
[1720948255444,2.28348071,3219.1,3218.8,2.3842]
[1720948255597,2.28429045,3219.4,3219.0,2.3842]
[1720948256055,2.28415311,3219.5,3219.1,0.07713533]
[1720948257904,0.78,3219.4,3219.1,0.07713533]
[1720948258105,3.37056842,3219.4,3219.1,0.07713533]
[1720948258305,3.06415311,3219.4,3219.1,0.07713533]
[1720948258727,2.28415311,3219.3,3219.1,0.07713533]
[1720948259348,2.2854877,3219.3,3219.1,0.07713533]
[1720948259551,3.0654877,3219.2,3219.1,0.07713533]
[1720948259709,0.78,3219.2,3218.7,2.3842]
[1720948259911,2.28555542,3219.1,3218.7,2.3842]
[1720948260515,2.28555542,3219.2,3218.7,2.3842]
[1720948261540,2.28555542,3219.2,3218.8,0.07728478]
[1720948261760,1.08,3219.6,3218.7,2.3842]
[1720948262040,2.28527916,3219.2,3218.9,0.07723496]
[1720948262246,0.78,3219.4,3218.8,0.07728478]
[1720948262447,2.28524095,3219.2,3219.0,0.07718514]
[1720948262608,2.28524095,3219.2,3218.9,0.07723496]
[1720948262941,2.28524095,3219.2,3219.0,0.07718514]
[1720948262942,1.0865241,3219.2,3219.0,0.07718514]
[1720948263142,1.0865241,3219.2,3218.6,7.3112]
[1720948263349,2.2855005,3219.0,3218.6,7.3112]
[1720948264629,2.28543367,3219.0,3218.6,7.3112]
[1720948264807,3.06543367,3219.0,3218.6,7.3112]
[1720948265008,2.28543367,3218.8,3218.6,7.3112]
[1720948265311,2.28559215,3218.7,3218.6,7.3112]
[1720948265527,2.28559215,3218.7,3218.3,2.3623]
[1720948266237,2.28559215,3218.6,3218.3,2.3623]
[1720948266984,2.28559215,3218.5,3218.1,7.25681372]
[1720948267126,2.28559215,3218.6,3218.1,7.25681372]
[1720948268279,2.28559215,3218.6,3218.1,8.9616383]
[1720948268439,0.78,3218.8,3218.1,8.9616383]
[1720948268635,2.28527768,3218.6,3218.1,8.9616383]
[1720948269173,2.28527768,3218.7,3218.1,8.9616383]
[1720948269575,2.28527768,3218.7,3218.1,1.70482458]
[1720948271472,2.28527768,3218.7,3218.0,9.7914321]
[1720948271819,2.28211618,3218.7,3218.0,9.7914321]
[1720948272143,3.78,3218.9,3218.0,9.7914321]
[1720948272345,2.28229973,3218.7,3218.0,9.7914321]
[1720948274979,2.28229973,3218.6,3218.0,9.7914321]
[1720948275195,3.15964933,3218.6,3218.0,9.7914321]
[1720948275371,3.06420006,3218.3,3218.0,7.4291321]
[1720948275677,2.28420006,3218.2,3218.0,0.1179321]
[1720948275884,2.28420006,3218.3,3218.0,0.1179321]
[1720948276181,2.28420006,3218.2,3218.0,0.1179321]
[1720948276352,2.28420006,3218.2,3218.1,0.07517799]
[1720948276558,2.28420006,3218.2,3218.0,0.1179321]
[1720948276869,2.28420006,3218.2,3218.1,0.07517799]
[1720948277238,0.52842001,3218.3,3218.0,0.1179321]
[1720948277239,2.81262007,3218.3,3218.0,0.1179321]
[1720948277443,1.13926201,3218.2,3218.0,0.1179321]
[1720948277641,3.42346207,3218.2,3218.1,0.07521736]
[1720948278185,3.42346207,3218.2,3218.0,0.1179321]
[1720948278356,2.64127225,3218.2,3218.1,0.07521736]
[1720948278539,0.35926201,3218.2,3218.0,0.1179321]
[1720948278745,1.13926201,3218.2,3218.1,0.07521736]
[1720948278958,1.13926201,3218.2,3218.0,0.1179321]
[1720948279244,0.39496923,3218.1,3218.0,0.1179321]
[1720948279987,3.39496923,3218.1,3218.0,0.1179321]
[1720948280275,3.43164853,3218.1,3218.0,0.1179321]
[1720948281090,3.39496923,3218.1,3218.0,0.1179321]
[1720948283459,6.457207,3218.1,3218.0,0.1179321]
[1720948284512,2.28149614,3218.5,3218.1,2.4972]
[1720948284817,3.06149614,3218.9,3218.1,2.4972]
[1720948285111,0.78,3218.9,3218.2,0.07516752]
[1720948286574,2.28112429,3219.0,3218.2,0.07516752]
[1720948286774,2.28112429,3219.0,3218.1,2.4972]
[1720948286983,2.28112429,3219.0,3218.3,0.07511768]
[1720948287184,2.28112429,3218.9,3218.1,2.4972]
[1720948287496,3.0,3218.9,3218.1,2.4972]
[1720948287682,3.0,3218.9,3218.2,0.07516752]
[1720948288594,3.04983828,3219.0,3218.2,0.07516752]
[1720948288792,3.0,3218.9,3218.2,0.07516752]
[1720948289204,5.28117585,3218.9,3218.2,0.07516752]
[1720948289379,2.28117585,3218.8,3218.2,0.07516752]
[1720948291889,5.88615968,3218.9,3218.2,0.07516752]
[1720948292224,2.28130184,3218.8,3218.2,0.07516752]
[1720948294514,5.88628567,3218.9,3218.2,0.07516752]
[1720948294711,3.0,3218.9,3218.2,0.07516752]
[1720948294925,2.28125294,3218.9,3218.2,0.07516752]
[1720948295128,5.281244,3218.9,3218.2,0.07516752]
[1720948297029,2.281244,3218.8,3218.2,0.07516752]
[1720948297223,5.281244,3218.8,3218.2,0.07516752]
[1720948297536,0.8281244,3218.7,3218.2,0.07516752]
[1720948297745,3.8281244,3218.7,3218.2,0.07516752]
[1720948298442,3.0,3218.7,3218.2,0.07516752]
[1720948298641,2.28129515,3218.8,3218.2,0.07516752]
[1720948299240,5.28129515,3218.9,3218.3,2.4972]
[1720948299967,3.0,3218.9,3218.3,2.4972]
[1720948300944,3.76866243,3219.0,3218.3,2.4972]
[1720948302053,3.0,3218.9,3218.3,2.4972]
[1720948302238,3.0,3219.3,3218.3,2.4972]
[1720948302443,2.28167411,3219.0,3218.3,2.4972]
[1720948302845,2.28167411,3219.0,3218.4,0.07505372]
[1720948303363,2.28167411,3219.0,3218.3,2.4972]
[1720948303554,2.28167411,3219.0,3218.4,0.07505372]
[1720948303754,2.50984152,3219.0,3218.3,2.4972]
[1720948303960,3.0,3218.9,3218.4,0.07505372]
[1720948304161,3.0,3218.9,3218.3,2.4972]
[1720948304342,5.28167411,3218.9,3218.4,0.07505372]
[1720948304545,3.0,3218.9,3218.3,2.4972]
[1720948304745,0.55098415,3218.8,3218.5,0.07500389]
[1720948304946,0.55098415,3218.8,3218.3,2.4972]
[1720948305169,0.55098415,3218.8,3218.6,0.07495406]
[1720948305469,0.55098415,3218.8,3218.3,2.4972]
[1720948305972,0.55098415,3218.8,3218.4,0.07505372]
[1720948306263,0.55098415,3218.8,3218.3,2.4972]
[1720948306562,0.55098415,3218.8,3218.4,0.07505372]
[1720948306775,0.58326583,3218.7,3218.3,2.4972]
[1720948306976,5.28167411,3218.9,3218.5,0.07500389]
[1720948307277,2.28167411,3218.8,3218.3,2.4972]
[1720948307576,2.28167411,3218.8,3218.4,0.07505372]
[1720948307876,2.28167411,3218.8,3218.3,2.4972]
[1720948308249,2.28167411,3218.8,3218.4,0.07505372]
[1720948308449,0.52816741,3218.7,3218.4,0.07505372]
[1720948308663,0.52816741,3218.7,3218.3,2.4972]
[1720948308969,0.52816741,3218.7,3218.0,0.1179321]
[1720948308970,2.81204941,3218.7,3218.4,0.07505372]
[1720948309171,2.81204941,3218.7,3218.0,2.5927321]
[1720948309340,2.81204941,3218.7,3218.5,0.07499279]
[1720948309564,2.64318694,3218.6,3218.0,2.5927321]
[1720948310587,1.14030494,3218.6,3218.0,2.5927321]
[1720948310790,2.28434703,3218.5,3218.0,2.5927321]
[1720948311367,2.28434703,3218.4,3218.0,2.5927321]
[1720948312114,0.781,3218.6,3218.0,2.5927321]
[1720948312411,0.52816741,3218.7,3218.0,2.5927321]
[1720948312412,2.28444557,3218.5,3218.0,2.5927321]
[1720948312567,2.28446163,3218.5,3218.0,2.5927321]
[1720948312920,2.28446163,3218.4,3218.0,0.1179321]
[1720948313267,2.89100779,3218.4,3218.0,0.1179321]
[1720948318814,2.28456867,3218.4,3218.0,0.1179321]
[1720948318997,2.28456867,3218.5,3218.1,2.4748]
[1720948321305,3.781,3218.6,3218.1,2.4748]
[1720948321497,2.28443441,3218.4,3218.2,0.07516247]
[1720948321703,0.43091674,3218.5,3218.2,0.07516247]
[1720948321879,2.28446508,3218.4,3218.2,0.07516247]
[1720948323507,2.28446508,3218.3,3218.2,0.07516247]
[1720948323685,2.28446508,3218.4,3218.2,0.07516247]
[1720948323884,2.28446508,3218.3,3218.2,0.07516247]
[1720948324520,0.781,3218.6,3218.2,0.07516247]
[1720948324702,2.28473034,3218.3,3218.2,0.07516247]
[1720948326528,0.781,3218.4,3218.2,0.07516247]
[1720948326983,0.781,3218.4,3218.3,0.07511668]
[1720948327184,3.47983772,3218.4,3218.0,0.1179321]
[1720948327413,2.28564761,3218.1,3218.0,0.1179321]
[1720948328079,3.0,3218.3,3218.0,0.1179321]
[1720948328080,2.2855936,3218.2,3218.0,0.1179321]
[1720948328309,2.2855936,3218.1,3218.0,0.1179321]
[1720948329316,2.28647604,3218.1,3218.0,0.1179321]
[1720948329539,5.69985745,3218.3,3218.0,0.1179321]
[1720948329688,2.28636367,3218.1,3218.0,0.1179321]
[1720948329888,3.0,3218.3,3218.0,0.1179321]
[1720948330195,2.28638318,3218.1,3218.0,0.1179321]
[1720948331188,5.69985745,3218.3,3218.0,0.1179321]
[1720948331383,6.27133003,3218.3,3218.0,0.1179321]
[1720948331815,3.56998575,3218.3,3218.0,0.1179321]
[1720948331996,3.0,3218.2,3218.0,0.1179321]
[1720948332911,6.27115509,3218.3,3218.0,0.1179321]
[1720948333887,2.28647514,3218.1,3218.0,0.1179321]
[1720948334088,3.56998575,3218.3,3218.0,0.1179321]
[1720948334089,3.0,3218.2,3218.0,0.1179321]
[1720948334326,5.70116934,3218.3,3218.0,0.1179321]
[1720948334824,6.48180533,3218.3,3218.0,0.1179321]
[1720948336422,4.42918053,3218.3,3218.1,0.0752406]
[1720948337156,7.12998586,3218.3,3218.1,0.0752406]
[1720948338101,7.1297375,3218.3,3218.1,0.0752406]
[1720948338437,2.73723627,3218.2,3218.1,0.0752406]
[1720948338607,5.73723627,3218.2,3218.1,0.0752406]
[1720948338806,6.75387795,3218.2,3218.1,0.0752406]
[1720948339589,4.01664168,3218.2,3218.1,0.0752406]
[1720948340762,4.05332098,3218.2,3218.1,0.0752406]
[1720948341363,7.25607257,3218.2,3218.1,0.0752406]
[1720948341526,7.25607257,3218.2,3218.0,0.1179321]
[1720948341727,8.1277862,3218.1,3218.0,0.1179321]
[1720948341970,4.88835531,3218.1,3218.0,0.1179321]
[1720948342137,8.1644655,3218.1,3218.0,0.1179321]
[1720948342471,10.5527655,3218.1,3218.0,0.1179321]
[1720948343773,7.31333461,3218.1,3218.0,0.1179321]
[1720948343956,10.5527655,3218.1,3218.0,0.1179321]
[1720948344142,10.5160862,3218.1,3218.0,0.1179321]
[1720948344327,7.27665531,3218.1,3218.0,0.1179321]
[1720948348488,4.88835531,3218.1,3218.0,0.1179321]
[1720948348700,1.88835531,3218.1,3218.0,0.1179321]
[1720948348990,2.28230788,3218.2,3218.0,2.5987321]
[1720948350207,3.7462493,3219.7,3218.1,0.781]
[1720948350356,1.77049631,3221.3,3218.1,0.781]
[1720948350357,1.95604587,3220.1,3219.6,0.781]
[1720948350706,1.95604587,3220.8,3220.0,0.781]
[1720948350867,1.95604587,3221.0,3220.1,0.61209263]
[1720948351075,0.781,3221.9,3220.7,0.781]
[1720948351394,0.781,3222.1,3221.1,0.781]
[1720948351569,0.781,3222.1,3220.8,0.07394369]
[1720948351570,1.7,3223.3,3222.0,0.781]
[1720948351904,0.8176793,3223.2,3222.1,0.85408416]
[1720948352411,0.781,3223.1,3222.1,0.781]
[1720948352553,0.781,3223.1,3220.6,0.7211]
[1720948352554,0.0366793,3223.0,3220.6,0.7211]
[1720948352752,0.0366793,3223.0,3220.7,2.49114747]
[1720948352951,0.36066793,3222.9,3220.8,0.32122475]
[1720948353206,0.0366793,3222.8,3220.8,0.32122475]
[1720948353355,0.0366793,3222.8,3220.9,0.62070559]
[1720948354181,0.0366793,3222.8,3220.9,2.49070559]
[1720948355259,0.36066793,3222.9,3220.9,2.49070559]
[1720948355460,0.33606679,3222.8,3221.0,0.24907056]
[1720948355696,0.33606679,3222.8,3221.0,0.3197034]
[1720948356003,0.37274609,3222.8,3221.0,0.3197034]
[1720948356174,0.0366793,3222.7,3221.3,7.3112]
[1720948356503,0.0366793,3222.7,3221.4,0.07043386]
[1720948356863,1.7366793,3222.7,3221.4,0.07043386]
[1720948357494,0.32466361,3222.6,3221.4,0.07043386]
[1720948357657,0.36134291,3222.6,3221.4,0.07043386]
[1720948357857,0.20613429,3222.5,3221.4,0.07043386]
[1720948358077,0.0366793,3222.4,3221.4,0.07043386]
[1720948359494,0.24281359,3222.5,3221.4,0.07043386]
[1720948360513,0.20613429,3222.5,3221.4,0.07043386]
[1720948361515,0.0366793,3222.4,3221.4,0.07043386]
[1720948361714,0.20613429,3222.5,3221.4,0.07043386]
[1720948363323,0.20613429,3222.5,3221.4,0.80859725]
[1720948369316,0.32466361,3222.6,3221.4,0.80859725]
[1720948372723,2.4195,3222.4,3221.4,0.07043386]
[1720948372923,0.0366793,3222.3,3221.4,0.07043386]
[1720948373122,2.4195,3222.4,3221.4,0.07043386]
[1720948375753,1.7,3222.3,3221.4,0.07043386]
[1720948375944,0.41195,3222.2,3221.4,0.07043386]
[1720948377567,3.0,3222.3,3221.4,0.07043386]
[1720948377764,3.0366793,3222.6,3221.4,0.07043386]
[1720948380392,4.1195,3221.9,3221.3,6.55906207]
[1720948380568,4.1195,3221.9,3221.0,12.45]
[1720948380569,3.0,3221.8,3221.5,0.06791465]
[1720948380747,3.41195,3221.8,3221.4,0.06576159]
[1720948381077,3.41195,3221.8,3221.0,19.00906207]
[1720948381078,3.41195,3221.8,3221.5,0.06352312]
[1720948381280,3.41195,3221.8,3221.0,19.00906207]
[1720948381452,3.41195,3221.8,3221.6,0.06347338]
[1720948381661,0.753145,3221.7,3221.0,19.00906207]
[1720948382870,0.32521188,3221.6,3221.0,19.00906207]
[1720948384092,0.36189118,3221.6,3221.0,19.00906207]
[1720948385960,0.36189118,3221.6,3220.6,6.55906207]
[1720948386464,1.7,3221.1,3220.1,6.55906207]
[1720948386669,0.0366793,3221.0,3220.1,7.21496828]
[1720948386973,1.7,3221.1,3220.1,6.55906207]
[1720948391166,2.4709,3221.0,3220.1,6.55906207]
[1720948391495,0.0366793,3220.9,3220.1,6.55906207]
[1720948391797,3.0366793,3220.9,3220.1,6.55906207]
[1720948391979,0.85075793,3220.8,3220.1,6.55906207]
[1720948392667,0.0366793,3220.7,3220.1,6.55906207]
[1720948393548,0.85075793,3220.8,3220.1,6.55906207]
[1720948394886,0.85075793,3220.8,3219.8,19.00906207]
[1720948396460,0.85075793,3220.8,3219.9,0.06441329]
[1720948397802,0.85075793,3220.8,3219.9,1.76338285]
[1720948398166,0.32529097,3220.7,3219.9,1.76338285]
[1720948399977,0.32529097,3220.7,3220.0,0.7211]
[1720948400203,0.32529097,3220.7,3220.5,0.7211]
[1720948400388,2.4709,3222.4,3220.7,0.7211]
[1720948400911,2.4709,3222.4,3220.8,0.06404738]
[1720948401607,2.4709,3222.8,3220.8,0.06404738]
[1720948401764,2.5075793,3222.8,3220.8,0.06404738]
[1720948402665,2.4709,3222.8,3220.9,0.06207638]
[1720948402867,0.24709,3222.7,3221.0,0.0638185]
[1720948403065,3.24709,3222.7,3221.0,0.0638185]
[1720948403266,3.24709,3222.7,3221.1,0.06207556]
[1720948403490,0.24709,3222.7,3221.2,0.78481901]
[1720948403710,2.19520034,3223.0,3221.2,0.78481901]
[1720948403711,0.32520034,3223.0,3221.3,0.06207242]
[1720948403883,0.32520034,3223.0,3221.4,0.06361952]
[1720948404216,0.32520034,3223.0,3221.5,0.06206931]
[1720948404590,0.32520034,3223.0,3221.6,0.06352005]
[1720948404780,0.32520034,3223.0,3221.7,0.06206592]
[1720948404974,0.32520034,3223.0,3221.7,0.26162452]
[1720948405186,0.32520034,3223.0,3221.8,0.12548605]
[1720948406106,0.32520034,3223.0,3221.8,0.06342059]
[1720948406316,0.1555563,3223.5,3221.5,0.06206524]
[1720948406600,2.36187964,3223.6,3221.6,0.06352005]
[1720948406601,4.1461,3222.7,3221.6,0.06352005]
[1720948407007,4.1461,3222.7,3221.2,0.7211]
[1720948407613,1.7,3222.2,3221.2,6.55906207]
[1720948407983,1.7,3222.2,3221.3,0.06366926]
[1720948408404,4.7,3222.2,3221.3,0.06366926]
[1720948408711,0.657,3222.1,3221.3,0.06366926]
[1720948413090,3.0,3222.2,3221.3,0.06366926]
[1720948413294,0.32517856,3224.0,3221.9,1.87]
[1720948413510,0.32517856,3224.0,3222.3,1.87]
[1720948413819,2.2761,3224.0,3222.4,0.06113275]
[1720948414211,2.2761,3224.0,3222.1,0.7211]
[1720948414383,2.11461,3223.9,3222.1,0.7211]
[1720948414583,2.11461,3223.9,3222.2,0.06119218]
[1720948414584,5.11461,3223.9,3222.2,0.06119218]
[1720948414811,2.11461,3223.9,3222.2,0.06119218]
[1720948416237,0.55,3223.8,3222.2,0.06119218]
[1720948417233,3.55,3223.8,3222.2,0.06119218]
[1720948417534,0.566461,3223.7,3222.2,0.06119218]
[1720948417689,0.55,3223.6,3222.2,0.06119218]
[1720948418631,0.55,3223.6,3222.3,6.55906207]
[1720948418799,1.7,3223.5,3222.3,6.55906207]
[1720948419001,0.55,3223.4,3222.4,0.06100182]
[1720948419316,0.225,3223.3,3222.4,0.06100182]
[1720948419997,1.87,3222.8,3222.4,0.06100182]
[1720948420325,1.87,3222.8,3222.0,12.45]
[1720948420628,0.55,3222.7,3222.0,12.45]
[1720948420785,0.55,3222.7,3222.1,0.05714257]
[1720948420986,0.242,3222.6,3222.1,0.05714257]
[1720948421237,0.55,3222.5,3222.1,0.05714257]
[1720948421730,0.55,3222.5,3221.5,6.55906207]
[1720948424198,1.7,3222.0,3221.0,6.55906207]
[1720948424403,2.494,3222.2,3221.0,6.55906207]
[1720948424715,0.55,3221.9,3221.0,6.55906207]
[1720948429317,0.32516414,3221.8,3221.0,6.55906207]
[1720948429518,0.55,3221.7,3221.0,6.55906207]
[1720948429722,0.93751641,3221.7,3221.0,6.55906207]
[1720948433545,0.93751641,3221.7,3220.7,19.00906207]
[1720948433747,0.93751641,3221.7,3220.8,0.05600467]
[1720948441062,2.2754,3221.6,3220.8,0.05600467]
[1720948441375,0.55,3221.5,3220.8,0.05600467]
[1720948441567,0.58254,3221.4,3220.8,0.05600467]
[1720948442769,0.32520964,3221.3,3220.8,0.05600467]
[1720948442970,0.32520964,3221.3,3220.4,6.55906207]
[1720948443175,0.32520964,3221.3,3220.5,0.05650163]
[1720948449361,0.32520964,3221.3,3220.6,0.05648963]
[1720948449543,0.32520964,3221.3,3220.6,1.4410052]
[1720948449965,0.32520964,3221.3,3220.7,0.06208873]
[1720948450165,0.32520964,3221.3,3220.8,0.0545107]
[1720948450487,0.32520964,3221.3,3220.8,0.06208619]
[1720948450671,0.32520964,3221.3,3220.9,0.05446094]
[1720948450874,0.32520964,3221.3,3220.6,1.38451557]
[1720948451263,0.32520964,3221.3,3220.7,0.05456045]
[1720948452564,0.32520964,3221.3,3220.7,0.1166466]
[1720948452769,0.32520964,3221.3,3220.7,0.05456045]
[1720948462210,3.32520964,3221.3,3220.7,0.05456045]
[1720948462699,3.32520964,3221.3,3220.4,6.5155637]
[1720948462904,3.32520964,3221.3,3220.4,8.41212007]
[1720948463201,3.32520964,3221.3,3220.5,0.05463315]
[1720948464975,2.8776,3221.2,3220.5,0.05463315]
[1720948465205,1.871,3221.0,3220.5,0.05463315]
[1720948465613,2.8776,3220.9,3220.5,0.05463315]
[1720948465912,3.79697534,3220.8,3219.8,6.5155637]
[1720948466211,1.871,3220.6,3219.8,6.5155637]
[1720948466413,1.871,3220.6,3219.9,0.05139374]
[1720948466715,0.55,3220.5,3219.9,0.05139374]
[1720948473185,2.3918,3220.4,3219.9,0.05139374]
[1720948473422,0.29418,3220.3,3219.9,0.05139374]
[1720948473597,3.29418,3220.3,3219.9,0.05139374]
[1720948474808,1.871,3220.2,3219.9,0.05139374]
[1720948475639,1.871,3220.2,3220.0,0.05143192]
[1720948475933,0.55,3220.1,3219.3,6.5155637]
[1720948476235,2.3918,3219.9,3219.3,6.5155637]
[1720948476586,5.3918,3219.9,3219.3,6.5155637]
[1720948481170,0.32529827,3219.8,3219.0,6.5155637]
[1720948481456,3.32529827,3219.8,3219.0,6.5155637]
[1720948483363,3.32529827,3219.8,3219.1,0.7211]
[1720948483661,3.0,3219.7,3219.2,0.72366637]
[1720948483867,0.32529827,3219.8,3219.2,0.72366637]
[1720948486358,0.32529827,3219.8,3219.3,0.05195642]
[1720948490036,0.32529827,3219.8,3219.3,0.11407199]
[1720948491260,0.32529827,3219.8,3219.3,0.05195642]
[1720948492347,0.32529827,3219.8,3219.3,0.11406661]
[1720948492979,0.32529827,3219.8,3219.3,0.05195642]
[1720948494081,0.32529827,3219.8,3219.3,0.11406663]
[1720948494853,0.32529827,3219.8,3219.3,0.05195642]
[1720948499588,0.32529827,3219.8,3219.3,0.11406667]
[1720948500179,0.32529827,3219.8,3219.3,0.05195642]
[1720948501304,0.32529827,3219.8,3219.3,0.11406676]
[1720948504606,0.32529827,3219.8,3219.4,0.7211]
[1720948504808,0.32529827,3219.8,3219.5,0.06210434]
[1720948504968,0.32529827,3219.8,3219.5,0.11383032]
[1720948508506,0.32529827,3219.8,3219.5,0.05172598]
[1720948509013,0.32529827,3219.8,3219.2,0.72366637]
[1720948509209,0.32529827,3219.8,3219.6,0.05007859]
[1720948509411,0.32529827,3219.8,3219.2,0.72366637]
[1720948509579,0.32529827,3219.8,3219.7,0.0500288]
[1720948509781,0.32529827,3219.8,3219.2,0.72366637]
[1720948510040,0.32529827,3219.8,3219.7,0.05000705]
[1720948510191,0.32529827,3219.8,3219.2,0.72366637]
[1720948510390,0.32529827,3219.8,3219.7,0.05000705]
[1720948510706,0.32529827,3219.8,3219.2,0.72366637]
[1720948510908,0.32529827,3219.8,3219.7,0.05000705]
[1720948511110,0.32529827,3219.8,3219.2,0.72366637]
[1720948511316,0.32529827,3219.8,3219.7,0.05000705]
[1720948511498,0.32529827,3219.8,3219.2,0.72366637]
[1720948511700,0.32529827,3219.8,3219.7,0.05000705]
[1720948512192,0.32529827,3219.8,3219.2,0.72366637]
[1720948512390,0.32529827,3219.8,3219.7,0.05000705]
[1720948512635,0.32529827,3219.8,3219.2,0.72366637]
[1720948512840,0.32529827,3219.8,3219.7,0.05001198]
[1720948513123,0.32529827,3219.8,3219.2,0.72366637]
[1720948513275,0.32529827,3219.8,3219.7,0.05001198]
[1720948513476,0.32529827,3219.8,3219.2,0.72366637]
[1720948513975,0.32529827,3219.8,3219.3,0.05021118]
[1720948514181,2.4642,3219.7,3219.3,0.05021118]
[1720948514505,2.4642,3219.7,3219.0,6.5155637]
[1720948514703,2.4642,3219.7,3219.4,0.05018905]
[1720948514890,2.4642,3219.7,3219.0,6.5155637]
[1720948515093,2.4642,3219.7,3219.5,0.05015013]
[1720948515286,2.4642,3219.7,3219.0,6.5155637]
[1720948515577,2.4642,3219.7,3219.6,0.05010033]
[1720948515777,2.4642,3219.7,3219.0,6.5155637]
[1720948516076,2.4642,3219.7,3219.1,0.06211767]
[1720948516519,2.4642,3219.7,3219.2,0.05029954]
[1720948517738,2.4642,3219.7,3219.0,9.13780144]
[1720948517739,2.4642,3219.7,3219.1,0.06211763]
[1720948518028,2.4642,3219.7,3219.2,0.05029954]
[1720948518328,2.4642,3219.7,3219.0,9.13780144]
[1720948518651,2.4642,3219.7,3219.1,2.15878014]
[1720948518934,2.4642,3219.7,3219.1,0.05035923]
[1720948519295,5.4642,3219.7,3219.1,0.05035923]
[1720948520339,3.0,3219.7,3219.1,0.05035923]
[1720948520491,0.32529827,3219.8,3219.1,0.05035923]
[1720948520492,2.4642,3219.6,3219.1,0.05035923]
[1720948522261,2.4642,3219.6,3218.7,6.5155637]
[1720948522398,0.54642,3219.5,3219.2,0.05030942]
[1720948522598,2.4642,3219.7,3218.7,6.5155637]
[1720948522796,3.0142,3219.6,3219.3,0.05025962]
[1720948522995,3.0,3219.5,3218.7,6.5155637]
[1720948523226,3.0,3219.5,3219.4,0.05020982]
[1720948523431,3.63395872,3219.5,3218.7,6.5155637]
[1720948523743,3.63395872,3219.5,3219.4,0.05020982]
[1720948524035,2.3082,3219.4,3218.7,6.5155637]
[1720948524530,3.0,3219.4,3218.7,6.5155637]
[1720948524752,2.85869587,3219.3,3218.7,6.5155637]
[1720948524909,2.3082,3219.1,3218.7,6.5155637]
[1720948525116,2.3082,3219.0,3218.1,6.5155637]
[1720948525308,2.8582,3219.0,3218.1,6.5155637]
[1720948525501,3.47292,3218.9,3218.1,6.5155637]
[1720948527327,2.3082,3218.8,3218.1,6.5155637]
[1720948529934,3.47292,3218.9,3218.1,6.5155637]
[1720948529935,2.3082,3218.6,3218.1,6.5155637]
[1720948530110,5.3082,3218.6,3217.7,6.5155637]
[1720948531242,5.3082,3218.6,3218.1,0.05095936]
[1720948531444,5.89402,3218.6,3218.1,0.05095936]
[1720948531827,5.3082,3218.6,3218.1,0.05095936]
[1720948532036,3.0,3218.5,3218.1,0.05095936]
[1720948532365,2.3082,3218.6,3218.1,0.05095936]
[1720948533242,2.3082,3219.0,3218.1,0.05095936]
[1720948533563,2.3082,3219.0,3218.1,0.11309757]
[1720948534658,0.32538715,3219.6,3218.1,0.11309757]
[1720948534659,2.3082,3219.5,3218.1,0.11309757]
[1720948534857,2.3082,3219.5,3218.2,6.5155637]
[1720948535062,2.3082,3219.5,3218.3,0.72500117]
[1720948535308,2.3082,3219.5,3218.3,0.77586085]
[1720948535816,0.32538715,3219.6,3218.4,0.7211]
[1720948535964,0.32538715,3219.6,3218.5,0.06212174]
[1720948536363,0.32538715,3219.6,3218.6,0.05070822]
[1720948536614,0.32538715,3219.6,3218.7,0.06212175]
[1720948536763,0.32538715,3219.6,3218.9,0.7211]
[1720948536964,0.32538715,3219.6,3219.0,0.11262044]
[1720948538708,0.32538715,3219.6,3219.1,0.55]
[1720948538998,0.32538715,3219.6,3219.2,0.11251301]
[1720948539168,0.32538715,3219.6,3219.3,0.06210369]
[1720948539604,0.32538715,3219.6,3219.4,0.05030972]
[1720948540146,0.32538715,3219.6,3219.0,0.06210381]
[1720948540267,0.32538715,3219.6,3219.5,0.05022235]
[1720948540468,0.32538715,3219.6,3219.1,0.37832038]
[1720948540710,0.32538715,3219.6,3219.5,0.05022235]
[1720948540918,0.32538715,3219.6,3219.1,0.37832038]
[1720948541069,0.32538715,3219.6,3219.5,0.05022235]
[1720948541267,0.32538715,3219.6,3219.1,0.37832038]
[1720948541469,0.32538715,3219.6,3219.5,0.05022235]
[1720948541700,0.32538715,3219.6,3219.1,0.37832038]
[1720948542382,0.32538715,3219.6,3219.2,0.05037176]
[1720948546508,0.32538715,3219.6,3219.2,0.11248062]
[1720948549300,0.32538715,3219.6,3219.3,0.06210489]
[1720948549526,0.32538715,3219.6,3219.4,1.2711]
[1720948549826,0.32538715,3219.6,3219.5,0.06210027]
[1720948550034,0.32538715,3219.6,3219.5,0.11221384]
[1720948551296,0.32538715,3219.6,3219.5,0.55054522]
[1720948553036,0.32538715,3219.6,3219.5,1.10054522]
[1720948554935,0.32533216,3220.0,3219.5,7.20654522]
[1720948555250,0.32533216,3220.0,3219.6,0.55]
[1720948555458,0.32533216,3220.0,3219.7,0.83774565]
[1720948555615,0.32533216,3220.0,3219.8,0.61209232]